[Event "Titled Tuesday Blitz March 07 Late 2023"]
[White "Dominguez Perez, Leinier"]
[Black "Cuenca Jimenez, Jose Fernando"]
[WhiteFideId "3503240"]
[BlackFideId "2255570"]
[WhiteElo "2647"]
[BlackElo "2429"]
[Result "1-0"]
[Round "05"]
[TimeControl "180+2"]
[Date "2023.03.07"]
[WhiteClock "0:00:13"]
[BlackClock "0:00:02"]

1. d4 {[%clk 0:02:55]}  Nf6 {[%clk 0:02:59]} 2. Nf3 {[%clk 0:02:54]}  g6 {[%clk 0:02:59]} 3. e3 {[%clk 0:02:54]}  Bg7 {[%clk 0:02:59]} 4. Be2 {[%clk 0:02:51]}  O-O {[%clk 0:02:59]} 5. O-O {[%clk 0:02:51]}  d5 {[%clk 0:02:58]} 6. b4 {[%clk 0:02:50]}  a5 {[%clk 0:02:56]} 7. b5 {[%clk 0:02:47]}  c5 {[%clk 0:02:54]} 8. bxc6 {[%clk 0:02:46]}  Nxc6 {[%clk 0:02:53]} 9. a4 {[%clk 0:02:46]}  Bf5 {[%clk 0:02:48]} 10. Na3 {[%clk 0:02:45]}  Ne4 {[%clk 0:02:43]} 11. Nb5 {[%clk 0:02:41]}  Rc8 {[%clk 0:02:35]} 12. Bb2 {[%clk 0:02:32]}  Nd6 {[%clk 0:02:23]} 13. c3 {[%clk 0:02:28]}  Nc4 {[%clk 0:02:03]} 14. Bc1 {[%clk 0:02:15]}  Qb6 {[%clk 0:01:56]} 15. Bxc4 {[%clk 0:02:05]}  dxc4 {[%clk 0:01:55]} 16. Re1 {[%clk 0:02:06]}  Bd3 {[%clk 0:01:52]} 17. Ba3 {[%clk 0:01:52]}  Rfe8 {[%clk 0:01:34]} 18. Ra2 {[%clk 0:01:51]}  Qa6 {[%clk 0:01:26]} 19. Rb2 {[%clk 0:01:46]}  Red8 {[%clk 0:01:02]} 20. e4 {[%clk 0:01:38]}  e6 {[%clk 0:00:48]} 21. e5 {[%clk 0:01:25]}  Rd7 {[%clk 0:00:43]} 22. h4 {[%clk 0:01:12]}  h6 {[%clk 0:00:42]} 23. h5 {[%clk 0:00:59]}  g5 {[%clk 0:00:41]} 24. Nh2 {[%clk 0:00:56]}  Ne7 {[%clk 0:00:26]} 25. Bxe7 {[%clk 0:00:55]}  Rxe7 {[%clk 0:00:26]} 26. Ng4 {[%clk 0:00:54]}  Rd8 {[%clk 0:00:18]} 27. Qf3 {[%clk 0:00:49]}  Bf5 {[%clk 0:00:17]} 28. Ne3 {[%clk 0:00:44]}  Bd3 {[%clk 0:00:15]} 29. Ng4 {[%clk 0:00:38]}  Bf5 {[%clk 0:00:15]} 30. Qg3 {[%clk 0:00:33]}  Qc6 {[%clk 0:00:14]} 31. f4 {[%clk 0:00:29]}  gxf4 {[%clk 0:00:06]} 32. Qxf4 {[%clk 0:00:28]}  Bxg4 {[%clk 0:00:06]} 33. Qxg4 {[%clk 0:00:27]}  Kh8 {[%clk 0:00:06]} 34. Rf2 {[%clk 0:00:20]}  Rg8 {[%clk 0:00:06]} 35. Qh4 {[%clk 0:00:18]}  Qd7 {[%clk 0:00:04]} 36. Ref1 {[%clk 0:00:17]}  Rf8 {[%clk 0:00:03]} 37. Nd6 {[%clk 0:00:16]}  Ree8 {[%clk 0:00:02]} 38. Rxf7 {[%clk 0:00:14]}  Rxf7 {[%clk 0:00:02]} 39. Rxf7 {[%clk 0:00:15]}  Qc6 {[%clk 0:00:02]} 40. Rxg7 {[%clk 0:00:13]}  Kxg7 {[%clk 0:00:01]} 41. Qf6+ {[%clk 0:00:14]}  Kh7 {[%clk 0:00:02]} 42. Qg6+ {[%clk 0:00:13]} 1-0


[Site "https://www.chess.com"]

[Event "Titled Tuesday Blitz March 07 Late 2023"]
[White "Krzyzanowski, Marcin"]
[Black "Prem, Pranav"]
[WhiteFideId "1132199"]
[BlackFideId "30901057"]
[WhiteElo "2471"]
[BlackElo "1970"]
[Result "1-0"]
[Round "05"]
[TimeControl "180+2"]
[Date "2023.03.07"]
[WhiteClock "0:00:55"]
[BlackClock "0:00:01"]

1. c4 {[%clk 0:03:00]}  e6 {[%clk 0:02:58]} 2. g3 {[%clk 0:02:54]}  d5 {[%clk 0:02:56]} 3. Bg2 {[%clk 0:02:54]}  Nf6 {[%clk 0:02:53]} 4. Nf3 {[%clk 0:02:53]}  dxc4 {[%clk 0:02:51]} 5. Qa4+ {[%clk 0:02:50]}  Nbd7 {[%clk 0:02:51]} 6. O-O {[%clk 0:02:48]}  a6 {[%clk 0:02:49]} 7. Qxc4 {[%clk 0:02:48]}  c5 {[%clk 0:02:49]} 8. d3 {[%clk 0:02:46]}  b5 {[%clk 0:02:48]} 9. Qb3 {[%clk 0:02:45]}  Bb7 {[%clk 0:02:42]} 10. a4 {[%clk 0:02:42]}  Qb6 {[%clk 0:02:40]} 11. Nc3 {[%clk 0:02:36]}  b4 {[%clk 0:02:29]} 12. Nb1 {[%clk 0:02:33]}  Bd5 {[%clk 0:02:18]} 13. Qc2 {[%clk 0:02:30]}  a5 {[%clk 0:02:10]} 14. Nbd2 {[%clk 0:02:26]}  Be7 {[%clk 0:02:07]} 15. e4 {[%clk 0:02:26]}  Bb7 {[%clk 0:02:07]} 16. Nc4 {[%clk 0:02:26]}  Qa6 {[%clk 0:02:06]} 17. Be3 {[%clk 0:02:27]}  O-O {[%clk 0:02:05]} 18. b3 {[%clk 0:02:23]}  Rfd8 {[%clk 0:02:04]} 19. Rac1 {[%clk 0:02:22]}  Rac8 {[%clk 0:02:04]} 20. Nfd2 {[%clk 0:02:19]}  Ng4 {[%clk 0:01:51]} 21. Bf4 {[%clk 0:02:13]}  g5 {[%clk 0:01:16]} 22. Be3 {[%clk 0:01:57]}  Nde5 {[%clk 0:01:16]} 23. Nxe5 {[%clk 0:01:40]}  Nxe5 {[%clk 0:01:16]} 24. Nc4 {[%clk 0:01:41]}  Nxc4 {[%clk 0:00:52]} 25. dxc4 {[%clk 0:01:40]}  Bf6 {[%clk 0:00:41]} 26. Qe2 {[%clk 0:01:39]}  h6 {[%clk 0:00:35]} 27. Rcd1 {[%clk 0:01:35]}  Bd4 {[%clk 0:00:32]} 28. h4 {[%clk 0:01:24]}  f6 {[%clk 0:00:17]} 29. hxg5 {[%clk 0:01:18]}  hxg5 {[%clk 0:00:17]} 30. Bxd4 {[%clk 0:01:00]}  cxd4 {[%clk 0:00:18]} 31. f4 {[%clk 0:01:00]}  Qb6 {[%clk 0:00:06]} 32. Rd3 {[%clk 0:01:00]}  e5 {[%clk 0:00:01]} 33. fxg5 {[%clk 0:00:58]}  fxg5 {[%clk 0:00:02]} 34. Rf5 {[%clk 0:00:57]}  Qg6 {[%clk 0:00:03]} 35. Qg4 {[%clk 0:00:56]}  Kh7 {[%clk 0:00:01]} 36. Rxg5 {[%clk 0:00:55]} 1-0


[Site "https://www.chess.com"]

[Event "Titled Tuesday Blitz March 07 Late 2023"]
[White "Do Nascimento,Christian Almeida"]
[Black "Adewumi, Tanitoluwa"]
[WhiteFideId "2143801"]
[BlackFideId "30966396"]
[WhiteElo "2125"]
[BlackElo "2742"]
[Result "0-1"]
[Round "05"]
[TimeControl "180+2"]
[Date "2023.03.07"]
[WhiteClock "0:00:14"]
[BlackClock "0:00:05"]

1. d4 {[%clk 0:02:57]}  Nf6 {[%clk 0:02:52]} 2. Bg5 {[%clk 0:02:57]}  e6 {[%clk 0:02:48]} 3. e4 {[%clk 0:02:56]}  h6 {[%clk 0:02:48]} 4. Bxf6 {[%clk 0:02:56]}  Qxf6 {[%clk 0:02:48]} 5. c3 {[%clk 0:02:57]}  c5 {[%clk 0:02:45]} 6. Bd3 {[%clk 0:02:57]}  cxd4 {[%clk 0:02:45]} 7. Nf3 {[%clk 0:02:56]}  Nc6 {[%clk 0:02:42]} 8. O-O {[%clk 0:02:53]}  Bc5 {[%clk 0:02:36]} 9. cxd4 {[%clk 0:02:49]}  Nxd4 {[%clk 0:02:33]} 10. Nxd4 {[%clk 0:02:44]}  Bxd4 {[%clk 0:02:01]} 11. Nc3 {[%clk 0:02:43]}  O-O {[%clk 0:01:57]} 12. Rc1 {[%clk 0:02:32]}  a6 {[%clk 0:01:56]} 13. Qg4 {[%clk 0:02:30]}  b5 {[%clk 0:01:45]} 14. a3 {[%clk 0:02:27]}  Bb7 {[%clk 0:01:45]} 15. Kh1 {[%clk 0:02:26]}  Rac8 {[%clk 0:01:42]} 16. f4 {[%clk 0:02:24]}  d6 {[%clk 0:01:19]} 17. f5 {[%clk 0:02:07]}  Bxc3 {[%clk 0:01:02]} 18. bxc3 {[%clk 0:02:08]}  Rxc3 {[%clk 0:00:35]} 19. fxe6 {[%clk 0:01:53]}  fxe6 {[%clk 0:00:35]} 20. Qd1 {[%clk 0:01:33]}  Rxc1 {[%clk 0:00:26]} 21. Qxc1 {[%clk 0:01:34]}  Rc8 {[%clk 0:00:17]} 22. Qe3 {[%clk 0:01:16]}  Qg5 {[%clk 0:00:16]} 23. Qf3 {[%clk 0:01:10]}  Qe7 {[%clk 0:00:15]} 24. a4 {[%clk 0:01:05]}  Rf8 {[%clk 0:00:11]} 25. Qxf8+ {[%clk 0:01:00]}  Qxf8 {[%clk 0:00:10]} 26. Rxf8+ {[%clk 0:01:01]}  Kxf8 {[%clk 0:00:10]} 27. axb5 {[%clk 0:01:01]}  axb5 {[%clk 0:00:11]} 28. e5 {[%clk 0:00:58]}  b4 {[%clk 0:00:03]} 29. exd6 {[%clk 0:00:55]}  Ke8 {[%clk 0:00:03]} 30. Bb5+ {[%clk 0:00:48]}  Kd8 {[%clk 0:00:03]} 31. Kg1 {[%clk 0:00:37]}  b3 {[%clk 0:00:03]} 32. Bd3 {[%clk 0:00:23]}  Kd7 {[%clk 0:00:03]} 33. Kf2 {[%clk 0:00:20]}  Kxd6 {[%clk 0:00:03]} 34. g3 {[%clk 0:00:21]}  Ke5 {[%clk 0:00:04]} 35. Ke3 {[%clk 0:00:21]}  Bd5 {[%clk 0:00:04]} 36. h4 {[%clk 0:00:20]}  b2 {[%clk 0:00:04]} 37. Bb1 {[%clk 0:00:19]}  g5 {[%clk 0:00:04]} 38. hxg5 {[%clk 0:00:18]}  hxg5 {[%clk 0:00:05]} 39. Kd2 {[%clk 0:00:14]}  Be4 {[%clk 0:00:05]} 0-1


[Site "https://www.chess.com"]

[Event "Titled Tuesday Blitz March 07 Late 2023"]
[White "Berezin, Viktor"]
[Black "Fernandez Guillen, Ernesto J."]
[WhiteFideId "14107872"]
[BlackFideId "3512428"]
[WhiteElo "2310"]
[BlackElo "2423"]
[Result "1-0"]
[Round "05"]
[TimeControl "180+2"]
[Date "2023.03.07"]
[WhiteClock "0:00:07"]
[BlackClock "0:00:14"]

1. d4 {[%clk 0:02:56]}  Nf6 {[%clk 0:02:59]} 2. c4 {[%clk 0:02:55]}  g6 {[%clk 0:03:00]} 3. Nf3 {[%clk 0:02:54]}  d6 {[%clk 0:03:00]} 4. g3 {[%clk 0:02:54]}  Bg7 {[%clk 0:03:01]} 5. Bg2 {[%clk 0:02:54]}  O-O {[%clk 0:03:02]} 6. O-O {[%clk 0:02:55]}  c6 {[%clk 0:03:03]} 7. Nc3 {[%clk 0:02:55]}  Qc7 {[%clk 0:03:03]} 8. h3 {[%clk 0:02:53]}  e5 {[%clk 0:03:04]} 9. e4 {[%clk 0:02:50]}  Nbd7 {[%clk 0:03:04]} 10. Re1 {[%clk 0:02:50]}  Rd8 {[%clk 0:03:03]} 11. Be3 {[%clk 0:02:50]}  exd4 {[%clk 0:03:03]} 12. Bxd4 {[%clk 0:02:46]}  Ne5 {[%clk 0:02:51]} 13. Nxe5 {[%clk 0:02:05]}  dxe5 {[%clk 0:02:52]} 14. Bxe5 {[%clk 0:02:05]}  Qe7 {[%clk 0:02:52]} 15. Bxf6 {[%clk 0:02:05]}  Bxf6 {[%clk 0:02:52]} 16. Qe2 {[%clk 0:01:57]}  Bxc3 {[%clk 0:02:51]} 17. bxc3 {[%clk 0:01:57]}  Be6 {[%clk 0:02:50]} 18. Rad1 {[%clk 0:01:41]}  Qc5 {[%clk 0:02:49]} 19. Qb2 {[%clk 0:01:39]}  b6 {[%clk 0:02:48]} 20. Rd4 {[%clk 0:01:39]}  Bxc4 {[%clk 0:02:43]} 21. Red1 {[%clk 0:01:38]}  Re8 {[%clk 0:02:42]} 22. a4 {[%clk 0:01:30]}  Be6 {[%clk 0:02:40]} 23. Kh2 {[%clk 0:01:22]}  h5 {[%clk 0:02:36]} 24. Qb4 {[%clk 0:01:18]}  h4 {[%clk 0:02:28]} 25. Qxc5 {[%clk 0:01:11]}  hxg3+ {[%clk 0:02:29]} 26. Kxg3 {[%clk 0:01:10]}  bxc5 {[%clk 0:02:30]} 27. Rd6 {[%clk 0:01:10]}  Rab8 {[%clk 0:02:30]} 28. Rxc6 {[%clk 0:01:06]}  c4 {[%clk 0:02:28]} 29. Bf1 {[%clk 0:00:53]}  Rec8 {[%clk 0:02:22]} 30. Rxc8+ {[%clk 0:00:52]}  Rxc8 {[%clk 0:02:23]} 31. Rd4 {[%clk 0:00:47]}  Rc5 {[%clk 0:02:23]} 32. f4 {[%clk 0:00:46]}  Kf8 {[%clk 0:02:19]} 33. h4 {[%clk 0:00:46]}  Ke7 {[%clk 0:02:18]} 34. Kf3 {[%clk 0:00:46]}  f6 {[%clk 0:02:16]} 35. Ke3 {[%clk 0:00:44]}  Rc8 {[%clk 0:02:02]} 36. Be2 {[%clk 0:00:41]}  Rc5 {[%clk 0:02:01]} 37. Bf1 {[%clk 0:00:39]}  Bf7 {[%clk 0:01:43]} 38. Be2 {[%clk 0:00:36]}  Rc7 {[%clk 0:01:33]} 39. Bf1 {[%clk 0:00:33]}  Kf8 {[%clk 0:01:29]} 40. Be2 {[%clk 0:00:33]}  Kg7 {[%clk 0:01:30]} 41. e5 {[%clk 0:00:31]}  fxe5 {[%clk 0:00:49]} 42. fxe5 {[%clk 0:00:32]}  Rc5 {[%clk 0:00:49]} 43. Ke4 {[%clk 0:00:30]}  Be6 {[%clk 0:00:38]} 44. Rd6 {[%clk 0:00:26]}  Bf5+ {[%clk 0:00:38]} 45. Kd4 {[%clk 0:00:26]}  Ra5 {[%clk 0:00:39]} 46. Bxc4 {[%clk 0:00:20]}  Rxa4 {[%clk 0:00:39]} 47. Rc6 {[%clk 0:00:21]}  Kf8 {[%clk 0:00:27]} 48. Kc5 {[%clk 0:00:19]}  Ra5+ {[%clk 0:00:26]} 49. Kd6 {[%clk 0:00:17]}  Ra1 {[%clk 0:00:26]} 50. Rc7 {[%clk 0:00:10]}  Rd1+ {[%clk 0:00:26]} 51. Kc5 {[%clk 0:00:10]}  a5 {[%clk 0:00:26]} 52. Ra7 {[%clk 0:00:10]}  Re1 {[%clk 0:00:25]} 53. Kd6 {[%clk 0:00:08]}  Rd1+ {[%clk 0:00:25]} 54. Kc5 {[%clk 0:00:09]}  Re1 {[%clk 0:00:25]} 55. Kd6 {[%clk 0:00:07]}  Re4 {[%clk 0:00:20]} 56. Ra8+ {[%clk 0:00:06]}  Kg7 {[%clk 0:00:20]} 57. Bd5 {[%clk 0:00:07]}  Rxh4 {[%clk 0:00:20]} 58. e6 {[%clk 0:00:08]}  Bxe6 {[%clk 0:00:14]} 59. Bxe6 {[%clk 0:00:08]}  a4 {[%clk 0:00:14]} 60. c4 {[%clk 0:00:08]}  Kf6 {[%clk 0:00:13]} 61. Rxa4 {[%clk 0:00:06]}  g5 {[%clk 0:00:12]} 62. Ra2 {[%clk 0:00:05]}  g4 {[%clk 0:00:11]} 63. Rf2+ {[%clk 0:00:05]}  Kg5 {[%clk 0:00:11]} 64. Rg2 {[%clk 0:00:05]}  Rh6 {[%clk 0:00:11]} 65. Rxg4+ {[%clk 0:00:05]}  Kh5 {[%clk 0:00:12]} 66. Rd4 {[%clk 0:00:05]}  Rf6 {[%clk 0:00:12]} 67. Re4 {[%clk 0:00:06]}  Rf8 {[%clk 0:00:12]} 68. c5 {[%clk 0:00:06]}  Rd8+ {[%clk 0:00:13]} 69. Bd7 {[%clk 0:00:06]}  Rf8 {[%clk 0:00:14]} 70. c6 {[%clk 0:00:07]}  Rf6+ {[%clk 0:00:14]} 71. Re6 {[%clk 0:00:07]}  Rf1 {[%clk 0:00:14]} 72. c7 {[%clk 0:00:07]} 1-0


[Site "https://www.chess.com"]

[Event "Titled Tuesday Blitz March 07 Late 2023"]
[White "reevecanada"]
[Black "Weichhold, Pawel"]
[BlackFideId "1139703"]
[WhiteElo "2523"]
[BlackElo "2330"]
[Result "1/2-1/2"]
[Round "05"]
[TimeControl "180+2"]
[Date "2023.03.07"]
[WhiteClock "0:00:30"]
[BlackClock "0:00:09"]

1. e4 {[%clk 0:02:59]}  c5 {[%clk 0:02:59]} 2. Nf3 {[%clk 0:02:58]}  Nc6 {[%clk 0:03:00]} 3. Bb5 {[%clk 0:02:57]}  e6 {[%clk 0:03:00]} 4. O-O {[%clk 0:02:56]}  Nge7 {[%clk 0:02:59]} 5. c3 {[%clk 0:02:52]}  a6 {[%clk 0:03:00]} 6. Ba4 {[%clk 0:02:52]}  b5 {[%clk 0:02:58]} 7. Bc2 {[%clk 0:02:51]}  d5 {[%clk 0:02:45]} 8. d4 {[%clk 0:02:51]}  cxd4 {[%clk 0:02:37]} 9. Nxd4 {[%clk 0:02:50]}  Nxd4 {[%clk 0:02:21]} 10. Qxd4 {[%clk 0:02:48]}  Bb7 {[%clk 0:02:08]} 11. Rd1 {[%clk 0:02:45]}  dxe4 {[%clk 0:01:50]} 12. Qe3 {[%clk 0:02:36]}  Nd5 {[%clk 0:01:34]} 13. Qxe4 {[%clk 0:02:36]}  Qc7 {[%clk 0:01:33]} 14. Bb3 {[%clk 0:02:27]}  Nxc3 {[%clk 0:01:07]} 15. Qc2 {[%clk 0:02:20]}  Nd5 {[%clk 0:01:08]} 16. Qxc7 {[%clk 0:02:18]}  Nxc7 {[%clk 0:01:09]} 17. Nc3 {[%clk 0:02:17]}  Bb4 {[%clk 0:00:58]} 18. Bf4 {[%clk 0:02:15]}  Bxc3 {[%clk 0:00:58]} 19. bxc3 {[%clk 0:02:08]}  Nd5 {[%clk 0:00:58]} 20. Be5 {[%clk 0:02:08]}  f6 {[%clk 0:00:54]} 21. Bd4 {[%clk 0:02:07]}  Rc8 {[%clk 0:00:53]} 22. Re1 {[%clk 0:02:00]}  Kf7 {[%clk 0:00:52]} 23. Rad1 {[%clk 0:01:37]}  Rhe8 {[%clk 0:00:50]} 24. g3 {[%clk 0:01:34]}  Re7 {[%clk 0:00:45]} 25. f4 {[%clk 0:01:31]}  g6 {[%clk 0:00:42]} 26. Rc1 {[%clk 0:01:30]}  Rd7 {[%clk 0:00:25]} 27. Kf2 {[%clk 0:01:17]}  Rd6 {[%clk 0:00:25]} 28. a3 {[%clk 0:01:12]}  Nb6 {[%clk 0:00:25]} 29. Rxe6 {[%clk 0:01:00]}  Rxe6 {[%clk 0:00:14]} 30. Bxb6 {[%clk 0:01:00]}  Ke7 {[%clk 0:00:14]} 31. Bxe6 {[%clk 0:00:57]}  Kxe6 {[%clk 0:00:15]} 32. Re1+ {[%clk 0:00:56]}  Kd6 {[%clk 0:00:16]} 33. Ba5 {[%clk 0:00:55]}  Bd5 {[%clk 0:00:10]} 34. Bb4+ {[%clk 0:00:55]}  Kc6 {[%clk 0:00:10]} 35. Re7 {[%clk 0:00:55]}  h5 {[%clk 0:00:11]} 36. Rg7 {[%clk 0:00:54]}  Be4 {[%clk 0:00:11]} 37. Rf7 {[%clk 0:00:54]}  Bf5 {[%clk 0:00:10]} 38. Rxf6+ {[%clk 0:00:54]}  Kd5 {[%clk 0:00:11]} 39. Rxa6 {[%clk 0:00:53]}  Re8 {[%clk 0:00:11]} 40. Rb6 {[%clk 0:00:53]}  Kc4 {[%clk 0:00:10]} 41. Rc6+ {[%clk 0:00:53]}  Kd3 {[%clk 0:00:11]} 42. Rd6+ {[%clk 0:00:53]}  Kc4 {[%clk 0:00:10]} 43. Rd4+ {[%clk 0:00:53]}  Kb3 {[%clk 0:00:11]} 44. Rd5 {[%clk 0:00:49]}  Ka4 {[%clk 0:00:07]} 45. Rc5 {[%clk 0:00:47]}  Bg4 {[%clk 0:00:05]} 46. Re5 {[%clk 0:00:44]}  Rd8 {[%clk 0:00:04]} 47. Ke3 {[%clk 0:00:44]}  Rd1 {[%clk 0:00:04]} 48. Re7 {[%clk 0:00:43]}  Re1+ {[%clk 0:00:04]} 49. Kd4 {[%clk 0:00:42]}  Rxe7 {[%clk 0:00:05]} 50. Bxe7 {[%clk 0:00:41]}  Be6 {[%clk 0:00:04]} 51. Ke5 {[%clk 0:00:41]}  Bf5 {[%clk 0:00:04]} 52. Bb4 {[%clk 0:00:41]}  Bd3 {[%clk 0:00:05]} 53. Kf6 {[%clk 0:00:41]}  Kb3 {[%clk 0:00:05]} 54. Kg5 {[%clk 0:00:39]}  Kc4 {[%clk 0:00:05]} 55. h3 {[%clk 0:00:37]}  Kd5 {[%clk 0:00:05]} 56. g4 {[%clk 0:00:37]}  hxg4 {[%clk 0:00:06]} 57. hxg4 {[%clk 0:00:37]}  Ke6 {[%clk 0:00:07]} 58. Bc5 {[%clk 0:00:35]}  Bc2 {[%clk 0:00:07]} 59. Bb4 {[%clk 0:00:34]}  Bd3 {[%clk 0:00:08]} 60. Kh4 {[%clk 0:00:34]}  Bc2 {[%clk 0:00:08]} 61. Kg3 {[%clk 0:00:34]}  Kd5 {[%clk 0:00:09]} 62. Kf3 {[%clk 0:00:34]}  Bd3 {[%clk 0:00:09]} 63. Ke3 {[%clk 0:00:34]}  Bc2 {[%clk 0:00:10]} 64. Kf3 {[%clk 0:00:30]}  Bd3 {[%clk 0:00:09]} 65. Kg3 {[%clk 0:00:30]}  Bc2 {[%clk 0:00:08]} 66. Kh4 {[%clk 0:00:29]}  Ke6 {[%clk 0:00:09]} 67. Kg5 {[%clk 0:00:30]}  Bd3 {[%clk 0:00:09]} 1/2-1/2


[Site "https://www.chess.com"]

[Event "Titled Tuesday Blitz March 07 Late 2023"]
[White "Sreyas Payyappat"]
[Black "Aldokhin, Ivan"]
[WhiteFideId "46674969"]
[BlackFideId "24115720"]
[WhiteElo "2083"]
[BlackElo "2322"]
[Result "0-1"]
[Round "05"]
[TimeControl "180+2"]
[Date "2023.03.07"]
[WhiteClock "0:00:09"]
[BlackClock "0:01:05"]

1. e4 {[%clk 0:02:58]}  c5 {[%clk 0:02:59]} 2. Nf3 {[%clk 0:02:56]}  e6 {[%clk 0:02:59]} 3. d4 {[%clk 0:02:53]}  cxd4 {[%clk 0:03:00]} 4. Nxd4 {[%clk 0:02:54]}  a6 {[%clk 0:03:00]} 5. Nc3 {[%clk 0:02:53]}  Qc7 {[%clk 0:03:00]} 6. Be3 {[%clk 0:02:53]}  Nf6 {[%clk 0:03:01]} 7. Bd3 {[%clk 0:02:54]}  b5 {[%clk 0:03:01]} 8. O-O {[%clk 0:02:53]}  Bb7 {[%clk 0:03:01]} 9. a3 {[%clk 0:02:52]}  d6 {[%clk 0:03:00]} 10. f4 {[%clk 0:02:52]}  Nbd7 {[%clk 0:03:00]} 11. g4 {[%clk 0:02:44]}  h6 {[%clk 0:02:57]} 12. g5 {[%clk 0:02:39]}  hxg5 {[%clk 0:02:56]} 13. fxg5 {[%clk 0:02:40]}  d5 {[%clk 0:02:57]} 14. Qe2 {[%clk 0:02:04]}  dxe4 {[%clk 0:02:41]} 15. Bxb5 {[%clk 0:01:54]}  axb5 {[%clk 0:02:23]} 16. gxf6 {[%clk 0:01:44]}  gxf6 {[%clk 0:01:52]} 17. Ndxb5 {[%clk 0:01:27]}  Qe5 {[%clk 0:01:50]} 18. Rad1 {[%clk 0:00:42]}  Bc5 {[%clk 0:01:41]} 19. b4 {[%clk 0:00:21]}  Bxe3+ {[%clk 0:01:27]} 20. Kh1 {[%clk 0:00:20]}  Bf4 {[%clk 0:01:20]} 21. Nd6+ {[%clk 0:00:19]}  Qxd6 {[%clk 0:01:20]} 22. Rxd6 {[%clk 0:00:17]}  Bxd6 {[%clk 0:01:20]} 23. Kg1 {[%clk 0:00:13]}  Ke7 {[%clk 0:01:05]} 24. Nxe4 {[%clk 0:00:10]}  Rag8+ {[%clk 0:01:05]} 25. Kf2 {[%clk 0:00:09]}  Rxh2+ {[%clk 0:01:04]} 26. Ke1 {[%clk 0:00:09]}  Rxe2+ {[%clk 0:01:04]} 27. Kxe2 {[%clk 0:00:09]}  Bxe4 {[%clk 0:01:05]} 0-1


[Site "https://www.chess.com"]

[Event "Titled Tuesday Blitz March 07 Late 2023"]
[White "Rangel, Daniel"]
[Black "Goltsev, Dmitry"]
[WhiteFideId "2124475"]
[BlackFideId "24176710"]
[WhiteElo "2256"]
[BlackElo "2336"]
[Result "0-1"]
[Round "05"]
[TimeControl "180+2"]
[Date "2023.03.07"]
[WhiteClock "0:00:04"]
[BlackClock "0:00:24"]

1. c4 {[%clk 0:03:00]}  Nf6 {[%clk 0:02:59]} 2. g3 {[%clk 0:02:59]}  e6 {[%clk 0:02:57]} 3. Bg2 {[%clk 0:02:59]}  d5 {[%clk 0:02:58]} 4. Nf3 {[%clk 0:02:59]}  dxc4 {[%clk 0:02:58]} 5. Qa4+ {[%clk 0:02:57]}  Nbd7 {[%clk 0:02:57]} 6. Qxc4 {[%clk 0:02:57]}  Nb6 {[%clk 0:02:58]} 7. Qc2 {[%clk 0:02:57]}  Be7 {[%clk 0:02:57]} 8. O-O {[%clk 0:02:58]}  O-O {[%clk 0:02:57]} 9. b3 {[%clk 0:02:57]}  a5 {[%clk 0:02:56]} 10. a3 {[%clk 0:02:56]}  c6 {[%clk 0:02:56]} 11. Bb2 {[%clk 0:02:56]}  Nbd7 {[%clk 0:02:48]} 12. d3 {[%clk 0:02:56]}  Qc7 {[%clk 0:02:47]} 13. Nbd2 {[%clk 0:02:56]}  e5 {[%clk 0:02:40]} 14. Nc4 {[%clk 0:02:55]}  Bd6 {[%clk 0:02:39]} 15. Nxd6 {[%clk 0:02:50]}  Qxd6 {[%clk 0:02:40]} 16. d4 {[%clk 0:02:39]}  e4 {[%clk 0:02:37]} 17. Ne5 {[%clk 0:02:40]}  Re8 {[%clk 0:02:33]} 18. e3 {[%clk 0:02:38]}  Nb6 {[%clk 0:02:28]} 19. Nc4 {[%clk 0:02:24]}  Nxc4 {[%clk 0:02:27]} 20. bxc4 {[%clk 0:02:25]}  Bg4 {[%clk 0:02:24]} 21. Bc3 {[%clk 0:02:15]}  Qd7 {[%clk 0:02:21]} 22. Qd2 {[%clk 0:02:09]}  Bf3 {[%clk 0:02:10]} 23. Bxa5 {[%clk 0:02:07]}  h5 {[%clk 0:02:04]} 24. Bc3 {[%clk 0:01:48]}  h4 {[%clk 0:02:03]} 25. d5 {[%clk 0:01:41]}  Qg4 {[%clk 0:01:59]} 26. h3 {[%clk 0:01:21]}  Qf5 {[%clk 0:01:47]} 27. Bxf6 {[%clk 0:01:11]}  Qxf6 {[%clk 0:01:44]} 28. Bxf3 {[%clk 0:01:08]}  Qxf3 {[%clk 0:01:41]} 29. Qd1 {[%clk 0:01:08]}  Qf5 {[%clk 0:01:39]} 30. Qg4 {[%clk 0:01:06]}  Qxg4 {[%clk 0:01:35]} 31. hxg4 {[%clk 0:01:06]}  hxg3 {[%clk 0:01:35]} 32. fxg3 {[%clk 0:01:06]}  cxd5 {[%clk 0:01:36]} 33. cxd5 {[%clk 0:01:06]}  Red8 {[%clk 0:01:37]} 34. Rfd1 {[%clk 0:01:05]}  Kf8 {[%clk 0:01:30]} 35. Rd4 {[%clk 0:01:03]}  Ra5 {[%clk 0:01:25]} 36. d6 {[%clk 0:01:00]}  Ra6 {[%clk 0:01:24]} 37. d7 {[%clk 0:00:59]}  g6 {[%clk 0:01:18]} 38. a4 {[%clk 0:00:55]}  Re6 {[%clk 0:01:12]} 39. Rf1 {[%clk 0:00:49]}  Ke7 {[%clk 0:01:10]} 40. Rf4 {[%clk 0:00:43]}  Rxd7 {[%clk 0:01:09]} 41. Rxf7+ {[%clk 0:00:41]}  Kxf7 {[%clk 0:01:08]} 42. Rxd7+ {[%clk 0:00:41]}  Re7 {[%clk 0:01:08]} 43. Rd4 {[%clk 0:00:20]}  Kf6 {[%clk 0:01:07]} 44. Kg2 {[%clk 0:00:18]}  Kg5 {[%clk 0:01:08]} 45. Rd6 {[%clk 0:00:18]}  Rc7 {[%clk 0:01:02]} 46. Rb6 {[%clk 0:00:16]}  Rc4 {[%clk 0:00:56]} 47. a5 {[%clk 0:00:13]}  Ra4 {[%clk 0:00:55]} 48. Rxb7 {[%clk 0:00:11]}  Kxg4 {[%clk 0:00:56]} 49. Re7 {[%clk 0:00:08]}  Ra2+ {[%clk 0:00:55]} 50. Kf1 {[%clk 0:00:08]}  Kf3 {[%clk 0:00:55]} 51. Rf7+ {[%clk 0:00:07]}  Kxe3 {[%clk 0:00:55]} 52. Rf6 {[%clk 0:00:08]}  Rxa5 {[%clk 0:00:46]} 53. Rxg6 {[%clk 0:00:08]}  Ra1+ {[%clk 0:00:42]} 54. Kg2 {[%clk 0:00:08]}  Ke2 {[%clk 0:00:43]} 55. Re6 {[%clk 0:00:07]}  e3 {[%clk 0:00:43]} 56. g4 {[%clk 0:00:08]}  Ra4 {[%clk 0:00:43]} 57. Kg3 {[%clk 0:00:07]}  Ra1 {[%clk 0:00:41]} 58. g5 {[%clk 0:00:07]}  Kd2 {[%clk 0:00:40]} 59. Kf3 {[%clk 0:00:04]}  Rf1+ {[%clk 0:00:37]} 60. Kg2 {[%clk 0:00:04]}  Rf5 {[%clk 0:00:36]} 61. g6 {[%clk 0:00:04]}  e2 {[%clk 0:00:36]} 62. Kg3 {[%clk 0:00:04]}  Rg5+ {[%clk 0:00:35]} 63. Kf4 {[%clk 0:00:04]}  Rxg6 {[%clk 0:00:35]} 64. Rxg6 {[%clk 0:00:04]}  e1=Q {[%clk 0:00:35]} 65. Rg2+ {[%clk 0:00:04]}  Kd3 {[%clk 0:00:35]} 66. Rg3+ {[%clk 0:00:04]}  Kd4 {[%clk 0:00:35]} 67. Rg4 {[%clk 0:00:05]}  Qf2+ {[%clk 0:00:35]} 68. Kg5+ {[%clk 0:00:05]}  Ke5 {[%clk 0:00:35]} 69. Kh5 {[%clk 0:00:05]}  Qf7+ {[%clk 0:00:32]} 70. Kh4 {[%clk 0:00:05]}  Kf5 {[%clk 0:00:26]} 71. Kg3 {[%clk 0:00:03]}  Qc7+ {[%clk 0:00:24]} 72. Kh4 {[%clk 0:00:04]}  Qh2# {[%clk 0:00:24]} 0-1


[Site "https://www.chess.com"]